[Event "*** Titled Tuesday Blitz"]
[Site "Chess.com"]
[Date "2020.01.07"]
[Round "3"]
[White "letantha"]
[Black "PawnEatingZombie"]
[Result "0-1"]
[WhiteElo "1815"]
[BlackElo "2296"]
[TimeControl "180+2"]
[EndTime "13:39:44 PST"]
[Termination "PawnEatingZombie won by resignation"]

1. e4 {[%clk 0:03:01.9]} 1... c6 {[%clk 0:03:00.7]} 2. Nc3 {[%clk 0:02:59.5]}
2... d5 {[%clk 0:03:02]} 3. Nf3 {[%clk 0:02:59]} 3... dxe4 {[%clk 0:03:03.1]} 4.
Nxe4 {[%clk 0:02:59]} 4... Nf6 {[%clk 0:03:04.7]} 5. Qe2 {[%clk 0:02:59.4]} 5...
Nxe4 {[%clk 0:03:05]} 6. Qxe4 {[%clk 0:02:59.8]} 6... Qa5 {[%clk 0:03:06.5]} 7.
Bc4 {[%clk 0:02:54.3]} 7... Bf5 {[%clk 0:03:05.9]} 8. Qe2 {[%clk 0:02:31.9]}
8... e6 {[%clk 0:03:04.3]} 9. O-O {[%clk 0:02:26.6]} 9... Be7 {[%clk 0:02:46.2]}
10. d4 {[%clk 0:02:20]} 10... O-O {[%clk 0:02:43.2]} 11. c3 {[%clk 0:02:17.5]}
11... Nd7 {[%clk 0:02:40.2]} 12. h3 {[%clk 0:02:08.9]} 12... b5 {[%clk
0:02:34.6]} 13. Bb3 {[%clk 0:02:02.9]} 13... Qc7 {[%clk 0:02:34.5]} 14. a4
{[%clk 0:01:57.7]} 14... a6 {[%clk 0:02:24.6]} 15. Be3 {[%clk 0:01:52.9]} 15...
Nf6 {[%clk 0:02:15.3]} 16. Ne5 {[%clk 0:01:51.7]} 16... Bd6 {[%clk 0:01:55.2]}
17. Bf4 {[%clk 0:01:40.5]} 17... Rfb8 {[%clk 0:01:34.4]} 18. Bg3 {[%clk
0:01:35.9]} 18... Be4 {[%clk 0:01:27.5]} 19. Nxf7 {[%clk 0:01:17.4]} 19... Kxf7
{[%clk 0:01:24.5]} 20. f3 {[%clk 0:01:02.1]} 20... Bd5 {[%clk 0:01:23.8]} 21.
Bxd6 {[%clk 0:00:58.6]} 21... Qxd6 {[%clk 0:01:24.7]} 22. Bc2 {[%clk 0:00:59.1]}
22... Bc4 {[%clk 0:01:19.5]} 23. Bd3 {[%clk 0:00:59.3]} 23... Bxd3 {[%clk
0:01:20.7]} 24. Qxd3 {[%clk 0:01:01.2]} 24... b4 {[%clk 0:01:14.6]} 25. Rf2
{[%clk 0:00:56.7]} 25... bxc3 {[%clk 0:01:12.1]} 26. bxc3 {[%clk 0:00:58.6]}
26... Rb3 {[%clk 0:01:11.2]} 27. Re2 {[%clk 0:00:54.3]} 27... a5 {[%clk
0:01:10.2]} 28. Rae1 {[%clk 0:00:54.3]} 28... Re8 {[%clk 0:01:05.8]} 29. Qc4
{[%clk 0:00:55.1]} 29... Rb7 {[%clk 0:01:03.4]} 30. Qd3 {[%clk 0:00:56]} 30...
c5 {[%clk 0:01:01.4]} 31. Qc4 {[%clk 0:00:45.1]} 31... cxd4 {[%clk 0:01:00.1]}
32. cxd4 {[%clk 0:00:47]} 32... Rb4 {[%clk 0:01:00.1]} 33. Qa2 {[%clk
0:00:36.6]} 33... Rxd4 {[%clk 0:00:52.9]} 34. Re5 {[%clk 0:00:38]} 34... Rd1
{[%clk 0:00:49.8]} 35. Qc2 {[%clk 0:00:28.7]} 35... Rxe1+ {[%clk 0:00:48.4]} 36.
Rxe1 {[%clk 0:00:28.9]} 36... Rd8 {[%clk 0:00:37.6]} 37. Qc4 {[%clk 0:00:18.6]}
37... Qd4+ {[%clk 0:00:37.7]} 38. Qxd4 {[%clk 0:00:19.8]} 38... Rxd4 {[%clk
0:00:38.7]} 39. Re5 {[%clk 0:00:21.1]} 39... Rxa4 {[%clk 0:00:39.2]} 40. Rb5
{[%clk 0:00:23]} 40... Ra2 {[%clk 0:00:38.7]} 41. Kh2 {[%clk 0:00:23.7]} 41...
a4 {[%clk 0:00:39.5]} 42. Kg3 {[%clk 0:00:25]} 42... Nd5 {[%clk 0:00:40.9]} 43.
Rb7+ {[%clk 0:00:25.7]} 43... Kf6 {[%clk 0:00:41.6]} 44. f4 {[%clk 0:00:20.9]}
44... h6 {[%clk 0:00:40.9]} 45. Kh4 {[%clk 0:00:19.9]} 45... a3 {[%clk
0:00:39.6]} 46. g4 {[%clk 0:00:19.5]} 46... Nxf4 {[%clk 0:00:38.4]} 47. Rb3
{[%clk 0:00:11.2]} 47... Nd5 {[%clk 0:00:38.4]} 48. Rf3+ {[%clk 0:00:11.3]}
48... Ke7 {[%clk 0:00:39.4]} 49. Rb3 {[%clk 0:00:12.6]} 49... Ra1 {[%clk
0:00:40.3]} 50. Kh5 {[%clk 0:00:12.7]} 50... a2 {[%clk 0:00:37.4]} 51. Ra3
{[%clk 0:00:14.2]} 51... Nb4 {[%clk 0:00:34.1]} 52. Kg6 {[%clk 0:00:15.3]} 52...
Rb1 {[%clk 0:00:32.8]} 53. Ra7+ {[%clk 0:00:17.2]} 53... Kd6 {[%clk 0:00:33.5]}
0-1

[Event "*** Titled Tuesday Blitz"]
[Site "Chess.com"]
[Date "2020.01.07"]
[Round "3"]
[White "ahachess"]
[Black "WarlordX"]
[Result "0-1"]
[WhiteElo "2246"]
[BlackElo "2484"]
[TimeControl "180+2"]
[EndTime "13:39:50 PST"]
[Termination "WarlordX won by resignation"]

1. d4 {[%clk 0:03:01.9]} 1... Nf6 {[%clk 0:03:00.8]} 2. c4 {[%clk 0:03:02.3]}
2... g6 {[%clk 0:03:02.1]} 3. Nc3 {[%clk 0:03:02.7]} 3... Bg7 {[%clk 0:03:03.5]}
4. e4 {[%clk 0:03:04.2]} 4... d6 {[%clk 0:03:05.1]} 5. Nf3 {[%clk 0:03:05.4]}
5... O-O {[%clk 0:03:05.4]} 6. Be2 {[%clk 0:03:06.4]} 6... Nc6 {[%clk
0:03:06.7]} 7. O-O {[%clk 0:03:07.9]} 7... e5 {[%clk 0:03:07.9]} 8. d5 {[%clk
0:03:09.3]} 8... Ne7 {[%clk 0:03:09.4]} 9. Ne1 {[%clk 0:03:10.8]} 9... Ne8
{[%clk 0:03:10.9]} 10. Be3 {[%clk 0:03:11.8]} 10... f5 {[%clk 0:03:12.5]} 11. f3
{[%clk 0:03:13.3]} 11... f4 {[%clk 0:03:12.5]} 12. Bf2 {[%clk 0:03:14.9]} 12...
g5 {[%clk 0:03:14.1]} 13. g4 {[%clk 0:03:16.2]} 13... fxg3 {[%clk 0:03:14.8]}
14. hxg3 {[%clk 0:03:17]} 14... h5 {[%clk 0:03:14.1]} 15. Kg2 {[%clk 0:03:13.2]}
15... Ng6 {[%clk 0:03:12.5]} 16. Nd3 {[%clk 0:03:13.6]} 16... Rf7 {[%clk
0:02:44.9]} 17. Rc1 {[%clk 0:03:09]} 17... h4 {[%clk 0:02:37.2]} 18. g4 {[%clk
0:03:09.3]} 18... Bf8 {[%clk 0:02:32.2]} 19. Kh3 {[%clk 0:02:22.1]} 19... Nf6
{[%clk 0:02:15.4]} 20. Kg2 {[%clk 0:02:07.3]} 20... Rh7 {[%clk 0:02:02.8]} 21.
Rh1 {[%clk 0:02:06.2]} 21... Bd7 {[%clk 0:01:55]} 22. Be3 {[%clk 0:02:01.8]}
22... Ne8 {[%clk 0:01:32.3]} 23. Qd2 {[%clk 0:02:02]} 23... Be7 {[%clk
0:01:33.8]} 24. b4 {[%clk 0:01:52.1]} 24... c6 {[%clk 0:01:23.3]} 25. c5 {[%clk
0:01:51.6]} 25... Rg7 {[%clk 0:00:53.5]} 26. cxd6 {[%clk 0:01:34.9]} 26... Nxd6
{[%clk 0:00:54.1]} 27. Nc5 {[%clk 0:01:30.6]} 27... Nf4+ {[%clk 0:00:43.8]} 28.
Bxf4 {[%clk 0:01:31.2]} 28... gxf4 {[%clk 0:00:45.3]} 29. Kh3 {[%clk 0:01:26.1]}
29... Bc8 {[%clk 0:00:37.4]} 30. dxc6 {[%clk 0:01:19.7]} 30... bxc6 {[%clk
0:00:38.7]} 31. Rcd1 {[%clk 0:00:59.2]} 31... Qf8 {[%clk 0:00:32.1]} 32. Rhg1
{[%clk 0:00:59.2]} 32... a5 {[%clk 0:00:31.5]} 33. a3 {[%clk 0:00:53.4]} 33...
axb4 {[%clk 0:00:32.8]} 34. axb4 {[%clk 0:00:55.3]} 34... Nf7 {[%clk 0:00:28.2]}
35. Bc4 {[%clk 0:00:55.1]} 35... Bxc5 {[%clk 0:00:27.4]} 36. bxc5 {[%clk
0:00:53.8]} 36... Qxc5 {[%clk 0:00:25.1]} 37. Qd8+ {[%clk 0:00:42.3]} 37... Qf8
{[%clk 0:00:25.7]} 38. Qc7 {[%clk 0:00:32.8]} 38... Kh7 {[%clk 0:00:20]} 39. Rh1
{[%clk 0:00:21.6]} 39... Ng5+ {[%clk 0:00:19.4]} 40. Kg2 {[%clk 0:00:22.6]}
40... Rxc7 {[%clk 0:00:20.3]} 41. Rxh4+ {[%clk 0:00:24.2]} 41... Kg7 {[%clk
0:00:21.5]} 42. Ne2 {[%clk 0:00:20.1]} 42... Qc5 {[%clk 0:00:20.5]} 43. Bb3
{[%clk 0:00:19.8]} 43... Be6 {[%clk 0:00:21]} 44. Bxe6 {[%clk 0:00:19.5]} 44...
Nxe6 {[%clk 0:00:22.9]} 45. Rdh1 {[%clk 0:00:20.7]} 45... Ng5 {[%clk 0:00:23.3]}
46. Rh5 {[%clk 0:00:22.6]} 46... Kg6 {[%clk 0:00:24.2]} 47. Rh6+ {[%clk
0:00:24]} 47... Kg7 {[%clk 0:00:25.8]} 48. R6h5 {[%clk 0:00:25.3]} 48... Nf7
{[%clk 0:00:25.7]} 49. Rh7+ {[%clk 0:00:26]} 49... Kf6 {[%clk 0:00:27.2]} 50.
R1h5 {[%clk 0:00:26.4]} 50... Ra2 {[%clk 0:00:27.3]} 51. Rf5+ {[%clk 0:00:26.9]}
51... Ke6 {[%clk 0:00:28.7]} 52. Kf1 {[%clk 0:00:25.9]} 52... Qe3 {[%clk
0:00:29.5]} 53. Nxf4+ {[%clk 0:00:22.9]} 53... exf4 {[%clk 0:00:30]} 54. Rhxf7
{[%clk 0:00:22.7]} 54... Qxf3+ {[%clk 0:00:30.7]} 0-1

[Event "*** Titled Tuesday Blitz"]
[Site "Chess.com"]
[Date "2020.01.07"]
[Round "3"]
[White "BilodeauA"]
[Black "Sashadav97"]
[Result "1-0"]
[WhiteElo "2801"]
[BlackElo "2581"]
[TimeControl "180+2"]
[EndTime "13:39:52 PST"]
[Termination "BilodeauA won by resignation"]

1. e4 {[%clk 0:03:01.9]} 1... c5 {[%clk 0:03:00.3]} 2. Nf3 {[%clk 0:03:02.9]}
2... Nc6 {[%clk 0:03:01.8]} 3. d4 {[%clk 0:03:04.4]} 3... cxd4 {[%clk
0:03:03.7]} 4. Nxd4 {[%clk 0:03:06.3]} 4... Nf6 {[%clk 0:03:05.1]} 5. Nc3 {[%clk
0:03:08]} 5... d6 {[%clk 0:03:06.7]} 6. Be2 {[%clk 0:03:01.8]} 6... e5 {[%clk
0:03:06.2]} 7. Nf3 {[%clk 0:03:03.1]} 7... h6 {[%clk 0:03:04.9]} 8. O-O {[%clk
0:03:03.6]} 8... Be7 {[%clk 0:03:05.7]} 9. h3 {[%clk 0:03:02.8]} 9... O-O {[%clk
0:03:06.8]} 10. Re1 {[%clk 0:02:59.3]} 10... a6 {[%clk 0:03:07.6]} 11. Bf1
{[%clk 0:03:00.5]} 11... b5 {[%clk 0:02:48.1]} 12. a4 {[%clk 0:03:00.7]} 12...
b4 {[%clk 0:02:47.1]} 13. Nd5 {[%clk 0:03:00.2]} 13... Bb7 {[%clk 0:02:48]} 14.
Be3 {[%clk 0:02:52.2]} 14... Nxd5 {[%clk 0:02:45.9]} 15. exd5 {[%clk 0:02:52.2]}
15... Nb8 {[%clk 0:02:46.8]} 16. c4 {[%clk 0:02:52.7]} 16... Nd7 {[%clk
0:02:46.3]} 17. a5 {[%clk 0:02:46.5]} 17... f5 {[%clk 0:02:46.5]} 18. Bd2 {[%clk
0:02:15.1]} 18... b3 {[%clk 0:01:59.1]} 19. Qxb3 {[%clk 0:02:14.4]} 19... Nc5
{[%clk 0:01:59.5]} 20. Qc2 {[%clk 0:02:12.1]} 20... Bf6 {[%clk 0:01:48.6]} 21.
Be3 {[%clk 0:02:03.1]} 21... Rc8 {[%clk 0:01:45.2]} 22. b4 {[%clk 0:02:01.3]}
22... Nd7 {[%clk 0:01:36.8]} 23. Qxf5 {[%clk 0:01:57.3]} 23... e4 {[%clk
0:01:25.7]} 24. Nd4 {[%clk 0:01:55.9]} 24... Ne5 {[%clk 0:00:58]} 25. Ne6 {[%clk
0:01:53.5]} 25... Qd7 {[%clk 0:00:59.2]} 26. Rac1 {[%clk 0:01:18.1]} 26... Rf7
{[%clk 0:00:48.2]} 27. Nd4 {[%clk 0:01:13.1]} 27... Qc7 {[%clk 0:00:32.7]} 28.
Qxe4 {[%clk 0:01:12.3]} 28... Re8 {[%clk 0:00:34.2]} 29. Qc2 {[%clk 0:01:10.2]}
29... Bc8 {[%clk 0:00:29.2]} 30. Bd3 {[%clk 0:01:01.9]} 30... Bh4 {[%clk
0:00:23.4]} 31. Bf5 {[%clk 0:00:58.3]} 31... Bxf5 {[%clk 0:00:20.2]} 32. Nxf5
{[%clk 0:01:00.2]} 32... Qd8 {[%clk 0:00:15.2]} 33. c5 {[%clk 0:00:50.8]} 33...
Ref8 {[%clk 0:00:14.8]} 34. Nxh4 {[%clk 0:00:41.2]} 34... Qxh4 {[%clk
0:00:12.6]} 35. f4 {[%clk 0:00:35]} 35... Rxf4 {[%clk 0:00:07.5]} 36. Bxf4
{[%clk 0:00:36.3]} 36... Rxf4 {[%clk 0:00:09]} 37. Re3 {[%clk 0:00:29.1]} 37...
Qg5 {[%clk 0:00:08.5]} 38. Rce1 {[%clk 0:00:24.6]} 38... Nf3+ {[%clk 0:00:06.6]}
39. Rxf3 {[%clk 0:00:25.8]} 39... Rxf3 {[%clk 0:00:08.5]} 40. c6 {[%clk
0:00:22.9]} 40... Qg3 {[%clk 0:00:03.6]} 41. Re8+ {[%clk 0:00:17.8]} 41... Kf7
{[%clk 0:00:04.4]} 42. Qe2 {[%clk 0:00:18.9]} 42... Rf6 {[%clk 0:00:04.8]} 43.
Re7+ {[%clk 0:00:18.2]} 43... Kg6 {[%clk 0:00:05.8]} 44. c7 {[%clk 0:00:16.8]}
44... Qc3 {[%clk 0:00:05.9]} 45. Qg4+ {[%clk 0:00:16.1]} 1-0

[Event "*** Titled Tuesday Blitz"]
[Site "Chess.com"]
[Date "2020.01.07"]
[Round "3"]
[White "Rainbow2014"]
[Black "oskariot"]
[Result "0-1"]
[WhiteElo "2268"]
[BlackElo "2603"]
[TimeControl "180+2"]
[EndTime "13:40:04 PST"]
[Termination "oskariot won on time"]

1. e4 {[%clk 0:02:57.4]} 1... e6 {[%clk 0:02:19.1]} 2. d4 {[%clk 0:02:57.5]}
2... d5 {[%clk 0:02:13]} 3. Nd2 {[%clk 0:02:53.6]} 3... c5 {[%clk 0:02:13.7]} 4.
exd5 {[%clk 0:02:53.4]} 4... exd5 {[%clk 0:02:15.6]} 5. Ngf3 {[%clk 0:02:53.1]}
5... Nf6 {[%clk 0:02:00.9]} 6. Bb5+ {[%clk 0:02:52.5]} 6... Bd7 {[%clk
0:02:00.8]} 7. Bxd7+ {[%clk 0:02:51.9]} 7... Nbxd7 {[%clk 0:02:02.7]} 8. O-O
{[%clk 0:02:53.7]} 8... Be7 {[%clk 0:02:00.4]} 9. dxc5 {[%clk 0:02:53.4]} 9...
Nxc5 {[%clk 0:01:34]} 10. Nb3 {[%clk 0:02:53.2]} 10... Nce4 {[%clk 0:01:34.1]}
11. Nbd4 {[%clk 0:02:48]} 11... Nd6 {[%clk 0:01:32]} 12. c3 {[%clk 0:02:47.1]}
12... O-O {[%clk 0:01:19.9]} 13. Bf4 {[%clk 0:02:45.5]} 13... Nfe4 {[%clk
0:01:18.1]} 14. Re1 {[%clk 0:02:45.1]} 14... Bf6 {[%clk 0:01:11.7]} 15. Be5
{[%clk 0:02:41.4]} 15... Be7 {[%clk 0:01:09.8]} 16. Bxd6 {[%clk 0:02:37.4]}
16... Bxd6 {[%clk 0:01:08.9]} 17. Nf5 {[%clk 0:02:37.6]} 17... Bc5 {[%clk
0:01:07.4]} 18. N3d4 {[%clk 0:02:33.6]} 18... Qf6 {[%clk 0:01:06.4]} 19. Qf3
{[%clk 0:02:23.3]} 19... Rfe8 {[%clk 0:01:02]} 20. Rad1 {[%clk 0:02:14.1]} 20...
Rad8 {[%clk 0:01:01.9]} 21. h3 {[%clk 0:02:12.8]} 21... Re5 {[%clk 0:00:48.9]}
22. Ne3 {[%clk 0:02:05.4]} 22... Qg6 {[%clk 0:00:21.4]} 23. Ndf5 {[%clk
0:01:29.7]} 23... h5 {[%clk 0:00:11.2]} 24. Nh4 {[%clk 0:01:11.7]} 24... Qf6
{[%clk 0:00:08.7]} 25. Qxf6 {[%clk 0:01:00.1]} 25... Nxf6 {[%clk 0:00:09.9]} 26.
Nef5 {[%clk 0:00:56.9]} 26... Rxe1+ {[%clk 0:00:10.1]} 27. Rxe1 {[%clk
0:00:57.6]} 27... g6 {[%clk 0:00:10.4]} 28. Ne7+ {[%clk 0:00:56.7]} 28... Kf8
{[%clk 0:00:11]} 29. Nexg6+ {[%clk 0:00:56.6]} 29... fxg6 {[%clk 0:00:12]} 30.
Nxg6+ {[%clk 0:00:58]} 30... Kg7 {[%clk 0:00:10.1]} 31. Nf4 {[%clk 0:00:58.3]}
31... Kf7 {[%clk 0:00:08.4]} 32. b4 {[%clk 0:00:56.8]} 32... Bb6 {[%clk
0:00:09]} 33. Ne6 {[%clk 0:00:55.5]} 33... Re8 {[%clk 0:00:09]} 34. Ng5+ {[%clk
0:00:56.1]} 34... Kg6 {[%clk 0:00:10.4]} 35. Rxe8 {[%clk 0:00:54.9]} 35... Nxe8
{[%clk 0:00:12.3]} 36. Ne6 {[%clk 0:00:55.9]} 36... Kf5 {[%clk 0:00:07.5]} 37.
Nf8 {[%clk 0:00:53.4]} 37... Ke4 {[%clk 0:00:04.7]} 38. g4 {[%clk 0:00:51.8]}
38... hxg4 {[%clk 0:00:05.3]} 39. hxg4 {[%clk 0:00:51.7]} 39... Kf4 {[%clk
0:00:06.8]} 40. Kf1 {[%clk 0:00:48.7]} 40... Kxg4 {[%clk 0:00:07.5]} 41. Ke2
{[%clk 0:00:49.4]} 41... Kf5 {[%clk 0:00:08.1]} 42. f3 {[%clk 0:00:49.7]} 42...
Nf6 {[%clk 0:00:09.4]} 43. Kd3 {[%clk 0:00:49]} 43... Bd8 {[%clk 0:00:10.1]} 44.
a4 {[%clk 0:00:48.8]} 44... Be7 {[%clk 0:00:11.2]} 45. Nd7 {[%clk 0:00:46]}
45... Nxd7 {[%clk 0:00:11.6]} 0-1

[Event "*** Titled Tuesday Blitz"]
[Site "Chess.com"]
[Date "2020.01.07"]
[Round "3"]
[White "AndrewDGreen"]
[Black "enriquetejedor"]
[Result "0-1"]
[WhiteElo "2220"]
[BlackElo "2481"]
[TimeControl "180+2"]
[EndTime "13:40:06 PST"]
[Termination "enriquetejedor won by resignation"]

1. d4 {[%clk 0:03:01.9]} 1... f5 {[%clk 0:02:59.2]} 2. Bg5 {[%clk 0:03:02.4]}
2... Nf6 {[%clk 0:02:36.5]} 3. Bxf6 {[%clk 0:03:03]} 3... exf6 {[%clk
0:02:36.8]} 4. e3 {[%clk 0:03:04]} 4... d5 {[%clk 0:02:37.8]} 5. c4 {[%clk
0:03:04.7]} 5... Be6 {[%clk 0:02:19.3]} 6. Nc3 {[%clk 0:03:00.8]} 6... Bb4
{[%clk 0:02:07.8]} 7. Qb3 {[%clk 0:02:59.8]} 7... Nc6 {[%clk 0:02:04.6]} 8. Rc1
{[%clk 0:02:33.5]} 8... O-O {[%clk 0:01:47.3]} 9. a3 {[%clk 0:02:24]} 9... Bxc3+
{[%clk 0:01:36.5]} 10. Rxc3 {[%clk 0:02:21.5]} 10... Na5 {[%clk 0:01:34.5]} 11.
Qb4 {[%clk 0:02:10.5]} 11... Nxc4 {[%clk 0:01:30.8]} 12. Bxc4 {[%clk 0:02:11.2]}
12... dxc4 {[%clk 0:01:31.5]} 13. Ne2 {[%clk 0:02:00.8]} 13... a5 {[%clk
0:01:16.6]} 14. Qxb7 {[%clk 0:01:48.3]} 14... Rb8 {[%clk 0:01:16.8]} 15. Qa6
{[%clk 0:01:42]} 15... Rb6 {[%clk 0:01:17.7]} 16. Qxa5 {[%clk 0:01:39.3]} 16...
Rxb2 {[%clk 0:01:18.6]} 17. Nc1 {[%clk 0:01:21.5]} 17... Qa8 {[%clk 0:00:41.1]}
18. Qxa8 {[%clk 0:00:47.9]} 18... Rxa8 {[%clk 0:00:43]} 19. O-O {[%clk
0:00:49.2]} 19... Rab8 {[%clk 0:00:44.2]} 20. Rd1 {[%clk 0:00:43.2]} 20... c6
{[%clk 0:00:43.4]} 21. Kf1 {[%clk 0:00:38.2]} 21... Ra8 {[%clk 0:00:34.1]} 22.
Ke1 {[%clk 0:00:37]} 22... h6 {[%clk 0:00:33.6]} 23. Rd2 {[%clk 0:00:27.5]}
23... Rb1 {[%clk 0:00:33.6]} 24. Ra2 {[%clk 0:00:26.3]} 24... Ra4 {[%clk
0:00:33.6]} 25. g3 {[%clk 0:00:23.7]} 25... h5 {[%clk 0:00:34]} 26. h4 {[%clk
0:00:22.6]} 26... g5 {[%clk 0:00:34.6]} 27. Kd2 {[%clk 0:00:23.7]} 27... f4
{[%clk 0:00:31]} 28. e4 {[%clk 0:00:19.7]} 28... fxg3 {[%clk 0:00:29.7]} 29.
fxg3 {[%clk 0:00:17]} 29... Kf7 {[%clk 0:00:30.2]} 30. Kc2 {[%clk 0:00:15.9]}
30... Rb3 {[%clk 0:00:24.7]} 31. Ne2 {[%clk 0:00:13.1]} 31... Rb8 {[%clk
0:00:23.5]} 32. Rb2 {[%clk 0:00:13.2]} 32... Rba8 {[%clk 0:00:23.8]} 33. Ra2
{[%clk 0:00:13.6]} 33... Rg8 {[%clk 0:00:23.8]} 34. Ra1 {[%clk 0:00:13.9]} 34...
Raa8 {[%clk 0:00:17]} 35. Rf1 {[%clk 0:00:13]} 35... gxh4 {[%clk 0:00:17.5]} 36.
gxh4 {[%clk 0:00:14.9]} 36... Rg2 {[%clk 0:00:19]} 37. Kd2 {[%clk 0:00:15.8]}
37... Bg4 {[%clk 0:00:20.2]} 38. Re1 {[%clk 0:00:11.4]} 38... Rb8 {[%clk
0:00:21]} 39. Rc2 {[%clk 0:00:08.6]} 39... Rb3 {[%clk 0:00:20.1]} 40. a4 {[%clk
0:00:08.7]} 40... Rd3+ {[%clk 0:00:17.4]} 41. Kc1 {[%clk 0:00:08.8]} 41... Ra3
{[%clk 0:00:18.9]} 42. Rxc4 {[%clk 0:00:08.5]} 42... Ra1+ {[%clk 0:00:19.1]} 43.
Kd2 {[%clk 0:00:09.2]} 43... Rxe1 {[%clk 0:00:19.9]} 44. Kxe1 {[%clk 0:00:09.2]}
44... Rxe2+ {[%clk 0:00:21.4]} 45. Kf1 {[%clk 0:00:10.2]} 45... Rxe4 {[%clk
0:00:22.6]} 46. Rxc6 {[%clk 0:00:09.7]} 46... Rxd4 {[%clk 0:00:23.1]} 47. a5
{[%clk 0:00:09.4]} 47... Ra4 {[%clk 0:00:23.6]} 48. a6 {[%clk 0:00:08.4]} 48...
Be6 {[%clk 0:00:22.1]} 49. Kf2 {[%clk 0:00:07]} 49... Rxh4 {[%clk 0:00:22.4]}
50. Rb6 {[%clk 0:00:06.5]} 50... Ra4 {[%clk 0:00:23.1]} 0-1

[Event "*** Titled Tuesday Blitz"]
[Site "Chess.com"]
[Date "2020.01.07"]
[Round "3"]
[White "ITheOnlyME"]
[Black "MikeSailer"]
[Result "0-1"]
[WhiteElo "2308"]
[BlackElo "2103"]
[TimeControl "180+2"]
[EndTime "13:40:06 PST"]
[Termination "MikeSailer won by checkmate"]

1. d4 {[%clk 0:02:40.1]} 1... d5 {[%clk 0:02:59.6]} 2. Bf4 {[%clk 0:02:40.5]}
2... Nf6 {[%clk 0:02:57.7]} 3. e3 {[%clk 0:02:41.3]} 3... Bf5 {[%clk 0:02:58.4]}
4. c4 {[%clk 0:02:40.5]} 4... e6 {[%clk 0:02:59.5]} 5. Nc3 {[%clk 0:02:41.2]}
5... Nc6 {[%clk 0:03:00.5]} 6. Nb5 {[%clk 0:02:35.2]} 6... Rc8 {[%clk 0:02:56]}
7. c5 {[%clk 0:02:18.9]} 7... a6 {[%clk 0:02:56.1]} 8. Nc3 {[%clk 0:02:16]} 8...
Be7 {[%clk 0:02:41.3]} 9. Be2 {[%clk 0:02:16.5]} 9... O-O {[%clk 0:02:40.9]} 10.
h3 {[%clk 0:02:17.5]} 10... h6 {[%clk 0:02:40.2]} 11. Nf3 {[%clk 0:02:16.6]}
11... Ne4 {[%clk 0:02:41.2]} 12. O-O {[%clk 0:02:14.5]} 12... Re8 {[%clk
0:02:11]} 13. Nxe4 {[%clk 0:02:04.9]} 13... Bxe4 {[%clk 0:02:11]} 14. Nd2 {[%clk
0:02:04.9]} 14... Bh7 {[%clk 0:02:11.7]} 15. Bh2 {[%clk 0:02:01]} 15... e5
{[%clk 0:02:06.2]} 16. Nf3 {[%clk 0:01:57.8]} 16... exd4 {[%clk 0:02:03.9]} 17.
exd4 {[%clk 0:01:58.5]} 17... Bf6 {[%clk 0:02:00.3]} 18. Re1 {[%clk 0:01:51.8]}
18... Be4 {[%clk 0:02:01]} 19. Qd2 {[%clk 0:01:22.3]} 19... Bxf3 {[%clk
0:01:55.2]} 20. Bxf3 {[%clk 0:01:23]} 20... Rxe1+ {[%clk 0:01:56.4]} 21. Rxe1
{[%clk 0:01:24.3]} 21... Nxd4 {[%clk 0:01:57.7]} 22. Bg4 {[%clk 0:01:23.6]}
22... Ra8 {[%clk 0:01:53.2]} 23. Rd1 {[%clk 0:01:20.6]} 23... c6 {[%clk
0:01:45.5]} 24. Re1 {[%clk 0:01:15.2]} 24... Nb5 {[%clk 0:01:18.4]} 25. a4
{[%clk 0:01:12.8]} 25... Nc7 {[%clk 0:01:18.4]} 26. Qf4 {[%clk 0:01:07.6]} 26...
Ne8 {[%clk 0:01:16.3]} 27. b4 {[%clk 0:01:05.1]} 27... d4 {[%clk 0:01:07.4]} 28.
Bf5 {[%clk 0:00:59.4]} 28... Qd5 {[%clk 0:01:03.8]} 29. Bd3 {[%clk 0:00:51.9]}
29... Bg5 {[%clk 0:00:58.5]} 30. Qg4 {[%clk 0:00:43.7]} 30... Nf6 {[%clk
0:00:57.2]} 31. Qd1 {[%clk 0:00:40.5]} 31... Nh7 {[%clk 0:00:46.6]} 32. Qc2
{[%clk 0:00:32.8]} 32... Nf8 {[%clk 0:00:47.4]} 33. Bc4 {[%clk 0:00:33]} 33...
Qd7 {[%clk 0:00:41.9]} 34. Bd6 {[%clk 0:00:24.7]} 34... Re8 {[%clk 0:00:38.2]}
35. Rd1 {[%clk 0:00:18.2]} 35... Bf6 {[%clk 0:00:37.7]} 36. Qb3 {[%clk
0:00:16.4]} 36... Ng6 {[%clk 0:00:32.6]} 37. b5 {[%clk 0:00:17.3]} 37... axb5
{[%clk 0:00:32.5]} 38. axb5 {[%clk 0:00:18.3]} 38... Ne5 {[%clk 0:00:31.5]} 39.
b6 {[%clk 0:00:17.4]} 39... Nxc4 {[%clk 0:00:31.6]} 40. Qxc4 {[%clk 0:00:19.3]}
40... Qe6 {[%clk 0:00:30.5]} 41. Qd3 {[%clk 0:00:19.2]} 41... Qe4 {[%clk
0:00:30.5]} 42. Qxe4 {[%clk 0:00:18.8]} 42... Rxe4 {[%clk 0:00:30.7]} 43. Rd3
{[%clk 0:00:17.6]} 43... Re1+ {[%clk 0:00:29.4]} 44. Kh2 {[%clk 0:00:18]} 44...
Re2 {[%clk 0:00:27]} 45. f4 {[%clk 0:00:14.4]} 45... Re3 {[%clk 0:00:24.2]} 46.
Rd2 {[%clk 0:00:14]} 46... d3 {[%clk 0:00:24.5]} 47. Ra2 {[%clk 0:00:11]} 47...
Bc3 {[%clk 0:00:23.6]} 48. Ra7 {[%clk 0:00:04.8]} 48... d2 {[%clk 0:00:24.1]}
49. Rxb7 {[%clk 0:00:05.5]} 49... d1=Q {[%clk 0:00:24.8]} 50. Rb8+ {[%clk
0:00:06.7]} 50... Kh7 {[%clk 0:00:25.3]} 51. b7 {[%clk 0:00:08.6]} 51... Re1
{[%clk 0:00:20.3]} 52. Rh8+ {[%clk 0:00:08.2]} 52... Kxh8 {[%clk 0:00:20.7]} 53.
b8=Q+ {[%clk 0:00:09.2]} 53... Kh7 {[%clk 0:00:22.1]} 54. Qc8 {[%clk 0:00:05.7]}
54... Rh1+ {[%clk 0:00:22.7]} 55. Kg3 {[%clk 0:00:07.1]} 55... Be1# {[%clk
0:00:23]} 0-1